Workbook

Sheet intro

Sheet Welkom
D2: CO2-tool opwerking groene reststromen 1.0
C13: Bedrijfsgegevens
D14: Naam bedrijf
D15: Locatie
D16: Jaar invoer
C18: Bevestiging best practice
C19: De groenafvaltool is alleen betrouwbaar te gebruiken wanneer sprake is van een vergunde inrichting met adequate systemen voor het wegen en administreren van materiaalstromen en andere operationele data. Daarnaast is specifiek van belang dat het composteerproces verloopt conform ‘goede praktijk’, omdat anders de emissies daarvan niet zijn in te schatten.
C22: Geef hieronder aan of u aan de criteria hiervoor voldoet.
D24: Er is sprake van een vergunde inrichting; | J24: FALSE
D25: Er is een operationele weegbrug aanwezig, of een ander betrouwbaar systeem waarmee aan- en afgevoerde hoeveelheden worden gemonitord; | J25: FALSE
D26: Aangevoerd groenafval wordt gemeld bij het LMA. | J26: FALSE
C28: Indien op de inrichting compostering plaatsvindt:
D29: De composterende hopen hebben een zodanige hoogte en structuur dat voldoende zuurstoftoevoer plaatsvindt (indicatief: maximaal 3 meter hoogte en voldoende houtachtig materiaal aanwezig); | J29: FALSE
D30: Er is sprake van actieve procescontrole (temperatuur); | J30: FALSE
D31: De verantwoordelijke bedrijfsvoerder is ter zake kundig en geschoold | J31: FALSE
D32: (bijvoorbeeld middeld de BVOR cursus compostering).

Sheet Hoofdscherm
D2: CO2-tool opwerking groene reststromen 1.1
I4: Transport van groenafval | Q4: Bedrijf: | R4: =CONCATENATE(Naam_bedrijf, ", ",Locatie) -> ,
L5: Ton per jaar | M5: Afstand (km) | Q5: Jaar: | R5: =jaartal -> 0
K6: Zwaar transport (truck) | M6: 35 | N6: =CONCATENATE(" (",Defaults!M6," km)") -> (35 km) | Q6: =IF(T7=1,"Werkt volgens best practice","Werkt niet volgens best practice") -> Werkt niet volgens best practice
K7: Licht transport (bestelbus met aanhanger) | M7: 20 | N7: =CONCATENATE(" (",Defaults!M7," km)") -> (20 km) | T7: =IF(AND(Welkom!J24=TRUE,Welkom!J25=TRUE,Welkom!J26=TRUE,Welkom!J29=TRUE,Welkom!J30=TRUE,Welkom!J31=TRUE),1,0) -> 0
K8: Tractor met aanhanger | M8: 10 | N8: =CONCATENATE(" (",Defaults!M8," km)") -> (10 km)
J11: Aangeleverd groenafval of deelstromen daaruit
L12: Totale hoeveelheid (ton per jaar) | M12: 10
C13: Energieverbruik
F14: Elektriciteit, grijs (kWh/ton groenafval) | L14: Hout (%)
F15: Elektriciteit, groene stroom mix (kWh/ton groenafval) | L15: Gras (%)
F16: Elektriciteit, windenergie (kWh/ton groenafval) | L16: Blad (%)
F17: Elektriciteit, zonne-energie (PV) (kWh/ton groenafval) | L17: Tuinbouwafval (%) | Q17: Samenstelling tijdens composteren:
F18: Diesel (liter/ton groenafval) | L18: Overig (%) | M18: =1-SUM(M14:M17) -> 1 | R18: Hout-achtig (kg/ton) | S18: =M14*1000-C82 -> 0 | T18: =S18/SUM(S$18:S$19) -> 0
F19: Gas (m3/ton groenafval) | R19: Niet-hout (kg/ton) | S19: =SUM(M15:M18)*1000-C84 -> 1000 | T19: =S19/SUM(S$18:S$19) -> 1
C21: Hout naar bio-energiecentrale
F22: Hout, afgescheiden vóór compostering (kg/ton groenafval) | P22: Alternatieve opwerking overige deelstromen
F23: Hout, afgescheiden na compostering (kg/ton groenafval) | S23: kg
F24: Calorische waarde hout (MJ/kg) | G24: 9.3 | H24: =CONCATENATE(" (",Defaults!G24,")") -> (9,3) | S24: (per ton | W24: Netto kg
F25: Rendement thermisch (%) | G25: 0.6 | H25: =CONCATENATE(" (",Defaults!G25*100,"%)") -> (60%) | Q25: Deelstroom | S25: groenafval) | T25: Opwerkingsproces | W25: CO2 eq
F26: Rendement elektrisch (%) | G26: 0 | H26: =CONCATENATE(" (",Defaults!G26*100,"%)") -> (0%)
C28: Gras naar co-vergister | G28: Opbrengst
F29: kg gras | G29: (m3
F30: /ton groenafval | G30: biogas /ton gras)
E31: Gras naar vergisting met opwekking elektriciteit | G31: 77 | H31: =CONCATENATE(" (",Defaults!G31," m3/ton)") -> (77 m3/ton) | P31: Surplus water naar RWZI
E32: Gras naar vergisting met productie groen gas | G32: 77 | H32: =CONCATENATE(" (",Defaults!G32," m3/ton)") -> (77 m3/ton) | S32: Water (m3/ton groenafval)
P34: Residu naar AVI / stort
C35: Zeefgrond | S35: AVI (kg/ton groenafval) | T35: 15 | U35: =CONCATENATE(" (",Defaults!T35,")") -> (15)
F36: Zeefgrond (kg/ton groenafval) | S36: Stort (kg/ton groenafval) | T36: 0 | U36: =CONCATENATE(" (",Defaults!T36,")") -> (0)
C38: Terugwinning warmte uit compostvloeren
F39: Geleverde warmte (MJ/ton groenafval)
I41: Transport van compost
K42: Ton per jaar | L42: Afstand (km)
J43: Enkele vrachtwagen | L43: 30 | M43: =CONCATENATE(" (",Defaults!L43," km)") -> (30 km)
J44: Dubbele vrachtwagen | L44: 30 | M44: =CONCATENATE(" (",Defaults!L44," km)") -> (30 km)
J45: Tractor met aanhanger | L45: 10 | M45: =CONCATENATE(" (",Defaults!L45," km)") -> (10 km)
H48: Compost
F49: Kenmerken Compost | K49: Marktverdeling
F50: Opbrengst (kg/ton groenafval) | I50: Landbouw (akkerbouw, vollegronds tuinbouw, boomteelt) | L50: 1 | M50: =CONCATENATE(" (",Defaults!L50*100,"%)") -> (100%)
F51: Totale opbrengst compost per jaar (ton): | G51: =G50*M12/1000 -> 0 | K51: Glastuinbouw | L51: 0 | M51: =CONCATENATE(" (",Defaults!L51,")") -> (0)
F52: ds (%) | K52: Hoveniers, particulieren | L52: 0 | M52: =CONCATENATE(" (",Defaults!L52,")") -> (0)
F53: Stikstof [N] (g/kg ds) | K53: Gemeenten (groenvoorziening) | L53: 0 | M53: =CONCATENATE(" (",Defaults!L53,")") -> (0)
F54: Fosfaat [P2O5] (g/kg ds) | K54: Potgrondsubstraten en aanvulgrond | L54: 0 | M54: =CONCATENATE(" (",Defaults!L54,")") -> (0)
F55: Kalium [K2O] (g/kg ds) | K55: Specifiek samengestelde grondproducten | L55: 0 | M55: =CONCATENATE(" (",Defaults!L55,")") -> (0)
F56: Organische stof (O.S.) (g/kg ds) | K56: Aannemerij/wegenbouw | L56: 0 | M56: =CONCATENATE(" (",Defaults!L56,")") -> (0)
K57: Anders (w.o. tussenhandel) | L57: =1-SUM(L50:L56) -> 0 | M57: =CONCATENATE(" (",Defaults!L57,")") -> (0)
Q58: =IF(T7=1,"","Resultaat niet betrouwbaar. Werkt niet volgens best practice.") -> Resultaat niet betrouwbaar. Werkt niet volgens best practice.
L59: =CONCATENATE("Resultaat: ",ROUND(CO2resultaat,0),"") -> Resultaat: 398 | M59: kg CO2-equivalenten | R59: =IF(M12=0,"(0",CONCATENATE("(",ROUND(CO2resultaat_per_ton,0))) -> (40 | S59: kg CO2-equivalenten per ton groenafval)
C74: Lijst:
C75: Hout
C76: Gras
C77: Blad
C78: Tuinbouwafval
C79: Overig
C81: Hout afgescheiden in voorbewerking:
C82: =SUMIF(Q26:R29,"Hout",S26:S29)+IF(C91=C87,G22,0)+M14*G36 -> 0
C83: Overige stromen afgescheiden in voorbewerking (zeefgrond wordt deels aan de houtfractie, deels aan de overige fractie toegerekend).
C84: =SUM(S26:S29)-SUMIF(Q26:R29,"Hout",S26:S29)+F32+SUM(M15:M18)*G36 -> 0

Sheet Defaults (hidden)
D2: CO2-tool groenafvalverwerking 1.0 DEFAULTS | AD2: Kleurcode
AE3: defaultwaarde waarvoor data aanwezig zijn
J4: Transport | AE4: Nog geen goede waarde
L5: Percen-tage | M5: Afstand (km) | AE5: Geen default nodig
K6: Zwaar transport (trucks) | M6: 35 | AE6: Geen invoercel
K7: Licht transport (bestelbus) | M7: 20
K8: Trekker | M8: 10
J11: Aangeleverd groenafval of deelstromen daaruit
L12: Totale hoeveelheid (ton per jaar)
C13: Energieverbruik
F14: Elektriciteit grijs (kWh/ton groenafval) | L14: Hout (%)
F15: Elektriciteit, groene stroom mix (kWh/ton groenafval) | L15: Gras (%)
F16: Elektriciteit, windenergie (kWh/ton groenafval) | L16: Blad (%)
F17: Elektriciteit, zonne-energie (PV) (kWh/ton groenafval) | L17: Tuinbouwafval (%)
F18: Diesel (liter/ton groenafval) | L18: Overig (%)
F19: Gas (m3/ton groenafval)
C21: Hout naar bio-energiecentrale
F22: Hout, afgescheiden vóór compostering (kg/ton groenafval) | P22: Alternatieve opwerking overige deelstromen
F23: Hout, afgescheiden na compostering (kg/ton groenafval) | S23: kg
F24: Calorische waarde hout (MJ/kg) | G24: 9.3 | S24: (per ton | W24: Netto kg
F25: Rendement thermisch (%) | G25: 0.6 | Q25: Deelstroom | S25: groenafval) | T25: Opwerkingsproces | W25: CO2 eq
F26: Rendement elektrisch (%) | G26: 0
C28: Gras naar co-vergister | G28: Opbrengst
F29: kg gras | G29: (m3
F30: /ton groenafval | G30: biogas /ton gras)
E31: Gras naar vergisting met wkk | G31: 77 | P31: Water naar RWZI
E32: Gras naar vergisting met productie groen gas | G32: 77 | S32: Water (m3/ton groenafval)
P34: Residu naar AVI / stort
C35: Zeefgrond | S35: AVI (kg/ton groenafval) | T35: 15
F36: Zeefgrond (kg/ton groenafval) | S36: Stort (kg/ton groenafval) | T36: 0
C38: Terugwinning warmte uit compostvloeren
F39: Benutte warmte (MJ/ton groenafval)
I41: Transport
K42: Percen-tage | L42: Afstand (km)
J43: Enkele vrachtwagen | L43: 30
J44: Dubbele vrachtwagen | L44: 30
J45: Tractor met aanhanger | L45: 10
H48: Compost
F49: Kenmerken Compost | K49: Marktverdeling
F50: Opbrengst (kg/ton groenafval) | I50: Landbouw (akkerbouw, vollegronds tuinbouw, boomteelt) | L50: 1
K51: Glastuinbouw | L51: 0
F52: ds (%) | K52: Hoveniers, particulieren | L52: 0
F53: Stikstof [N] (g/kg ds) | K53: Gemeenten (groenvoorziening) | L53: 0
F54: Fosfaat [P2O5] (g/kg ds) | K54: Potgrondsubstraten en aanvulgrond | L54: 0
F55: Kalium [K2O] (g/kg ds) | K55: Specifiek samengestelde grondproducten | L55: 0
F56: Organische stof (O.S.) (g/kg ds) | K56: Aannemerij/wegenbouw | L56: 0
K57: Anders (w.o. tussenhandel) | L57: 0
D84: CO2-tool groenafvalverwerking 1.0 DEFAULTS
AD85: Kleurcode
J86: Transport | AE86: defaultwaarde waarvoor data aanwezig zijn
L87: Percen-tage | M87: Afstand (km) | AE87: Nog geen goede waarde
K88: Truck | L88: 0.5 | M88: 30
K89: Truck + aanhanger | L89: 0.5 | M89: 30
K90: Bestelbus | L90: 0.25 | M90: 30 | AE90: truck
K91: Personenauto + aanhanger | L91: 0.25 | M91: 30 | AE91: schip
AE92: trein
J94: Aangeleverd groenafval of deelstromen daaruit
L95: Totale hoeveelheid (ton per jaar) | M95: 12
C97: Energieverbruik | L97: Hout (%) | M97: 0.4 | AE97: schip
F98: Elektriciteit grijs (kWh/ton groenafval) | G98: 5 | L98: Gras (%) | M98: 0.3
F99: Elektriciteit groen (kWh/ton groenafval) | G99: 0 | L99: Blad (%) | M99: 0.2
F100: Diesel (liter/ton groenafval) | G100: 3 | L100: Tuinbouwafval (%) | M100: 0
F101: Gas (m3/ton groenafval) | G101: 0 | L101: Overig (%) | M101: =1-SUM(M97:M100) -> 0.1
C106: Hout naar bio-energiecentrale | P106: Alternatieve opwerken overige deelstromen | W106: Netto kg CO2 eq
F107: Hout (kg/ton groenafval) | G107: 80 | S107: kg | T107: Opwerkingsproces
C108: Gras naar co-vergister | R108: Hout (per ton groenafval) | S108: 0 | W108: 0
F109: Gras (kg/ton groenafval) | G109: 150 | R109: Gras (per ton groenafval) | S109: 0 | W109: 0
C110: Zeefgrond | R110: Blad (per ton groenafval) | S110: 0 | W110: 0
F111: Zeefgrond (kg/ton groenafval) | G111: 80 | R111: Tuinbouwafval (per ton groenafval) | S111: 0 | W111: 0
R112: Overig (per ton groenafval) | S112: 0 | W112: 0
K114: Samenstelling na afscheiding deelstromen:
L115: Hout-achtig (kg/ton) | M115: =M97*1000-G107-S108-M97*G111 -> 288 | N115: =M115/SUM(M$34:M$35) -> 
L116: Niet-hout (kg/ton) | M116: =SUM(M98:M101)*1000-G109-(1-M97)*G111-SUM(S109:S112) -> 402 | N116: =M116/SUM(M$34:M$35) -> 
C119: Terugwinning warmte uit compostvloeren | AE119: truck
F120: Benutte warmte (MJ/ton groenafval) | G120: 15
P121: Water naar percolaatbassin (?) | V121: Water naar RWZI
R122: Water (liter/ton groenafval) | S122: 50 | X122: Water (m3/ton groenafval) | Y122: 5
C123: Residu naar AVI / stort
F124: AVI (kg/ton groenafval) | G124: 15
F125: Stort (kg/ton groenafval) | G125: 0
J128: Transport
L129: Transportmiddel
L130: Afstand (km) | M130: 35
H133: Compost
F135: Kenmerken Compost | K135: Marktverdeling
F136: Opbrengst (kg/ton groenafval) | G136: 350 | K136: akkerbouw (%) | L136: =1-SUM(L137:L140) -> 0.69
F137: ds (%) | G137: 69 | K137: glastuinbouw (%) | L137: 0.05
F138: Stikstof [N] (g/kg ds) | G138: 8.23 | K138: potgrond (%) | L138: 0.16
F139: Fosfaat [P2O5] (g/kg ds) | G139: 4.12 | K139: tuincentra (%) | L139: 0.01
F140: Kalium [K2O] (g/kg ds) | G140: 8.25 | K140: overigen (%) | L140: 0.09
F141: Organische stof (O.S.) (g/kg ds) | G141: 244
R143: =CONCATENATE("Resultaat: ",ROUND([0]!CO2resultaat,0),"") -> Resultaat: 398 | S143: kg CO2-equivalenten

Sheet Kengetallen (hidden)
A1: Startpunt: totale hoeveelheid groene reststromen
D2: =Hoofdscherm!M12 -> 10 | E2: ton | J2: Kleurcode
C3: Fractie hout | D3: =Hoofdscherm!M14 -> 0 | E3: % | K3: invoer
C4: Fractie gras | D4: =Hoofdscherm!M15 -> 0 | E4: % | K4: berekening
C5: Fractie blad | D5: =Hoofdscherm!M16 -> 0 | E5: % | K5: kengetallen & berekening uit oude gft-tool
C6: Fractie tuinafval | D6: =Hoofdscherm!M17 -> 0 | E6: % | K6: geupdate kengetallen
C7: Fractie overig | D7: =Hoofdscherm!M18 -> 1 | E7: %
G9: =hoeveelheid_compost*H18 -> 0
A10: Compost eigenschappen en toepassing
A11: compost | B11: kg compost / ton groenafval | C11: =Hoofdscherm!G50 -> 0 | D11: N-gehalte | E11: =Hoofdscherm!G53 -> 0 | F11: [N] in g/kg dw
D12: C-gehalte | E12: =0.5*Hoofdscherm!G56/1000 -> 0 | F12: [C] in kg/kg dw
D13: P-gehalte | E13: =Hoofdscherm!G54 -> 0 | F13: [P2O5] in g/kg dw
D14: K-gehalte | E14: =Hoofdscherm!G55 -> 0 | F14: [K2O] in g/kg dw
B15: %dw | C15: =Hoofdscherm!G52 -> 0 | D15: % bijdrage aan veenvervanging | E15: % bijdrage aan kunstmest-vervanging | F15: % bijdrage aan koolstofvastlegging | J15: % N beschikbaar voor vervanging | K15: % P beschikbaar voor vervanging | L15: % K beschikbaar voor vervanging
A16: Landbouw (akkerbouw, vollegronds tuinbouw, boomteelt) | B16: % | C16: =Hoofdscherm!L50 -> 1 | D16: 0 | E16: 0.5 | F16: 1 | G16: kunstmestvervanging totaal | H16: =(C16*E16)+(C17*E17)+(C18*E18)+(C19*E19)+(C20*E20)+(C21*E21)+(C22*E22)+(C23*E23) -> 0.5 | I16: % | J16: 0.6 | K16: 0.9 | L16: 1
A17: Tuinbouw | B17: % | C17: =Hoofdscherm!L51 -> 0 | D17: 1 | E17: 1 | F17: 1 | G17: koolstofvastlegging totaal | H17: =(C16*F16)+(C17*F17)+(C18*F18)+(C19*F19)+(C20*F20)+(C21*F21)+(C22*F22)+(C23*F23) -> 1 | I17: % | J17: 0.6 | K17: 0.9 | L17: 1
A18: Hoveniers, particulieren | B18: % | C18: =Hoofdscherm!L52 -> 0 | D18: 1 | E18: 1 | F18: 1 | G18: veenvervanging totaal | H18: =(C16*D16)+(C17*D17)+(C18*D18)+(C19*D19)+(C20*D20)+(C21*D21)+(C22*D22)+(C23*D23) -> 0 | I18: % | J18: 0.6 | K18: 0.9 | L18: 1
A19: Gemeenten | B19: % | C19: =Hoofdscherm!L53 -> 0 | D19: 0.5 | E19: 0 | F19: 1 | G19: vervangingswaarde compost | H19: 0.83 | I19: kg veen / kg compost | J19: 0.6 | K19: 0.9 | L19: 1
A20: Potgrondproducenten | B20: % | C20: =Hoofdscherm!L54 -> 0 | D20: 1 | E20: 1 | F20: 1 | G20: veenvervanging | H20: =H18*hoeveelheid_compost*H19 -> 0 | I20: kg | J20: 0.15 | K20: 0.9 | L20: 1
A21: Grondproducten | B21: % | C21: =Hoofdscherm!L55 -> 0 | D21: 1 | E21: 1 | F21: 1 | J21: 0.6 | K21: 0.9 | L21: 1
A22: Aannemerij/wegenbouw | B22: % | C22: =Hoofdscherm!L56 -> 0 | D22: 0 | E22: 0 | F22: 1 | J22: 0.6 | K22: 0.9 | L22: 1
A23: Anders (w.o. tussenhandel) | B23: % | C23: =Hoofdscherm!L57 -> 0 | D23: 0 | E23: 0 | F23: 1 | J23: 0.6 | K23: 0.9 | L23: 1
I24: % totaal beschikbaar: | J24: =(C16*J16)+(C17*J17)+(C18*J18)+(C19*J19)+(C20*J20)+(C21*J21)+(C22*J22)+(C23*J23) -> 0.6 | K24: =(C16*K16)+(C17*K17)+(C18*K18)+(C19*K19)+(C20*K20)+(C21*K21)+(C22*K22)+(C23*K23) -> 0.9 | L24: =(C16*L16)+(C17*L17)+(C18*L18)+(C19*L19)+(C20*L20)+(C21*L21)+(C22*L22)+(C23*L23) -> 1
A25: Berekening per ton groenafval
A26: parameter | B26: unit | C26: amount | D26: kg CO2-eq. Per unit | E26: kg CO2-eq. Total | F26: Remarks (references)
A27: transport zwaar (truck) | B27: tkm | C27: =Hoofdscherm!L6*Hoofdscherm!M6/Hoofdscherm!$M$12 -> 0 | D27: 0.13 | E27: =C27*D27 -> 0 | F27: vrachtauto >20 ton, CO2-prestatieladder v2.1, SKAO
A28: transport licht (bestelbus, personenauto) | B28: tkm | C28: =Hoofdscherm!L7*Hoofdscherm!M7/Hoofdscherm!$M$12 -> 0 | D28: 0.63 | E28: 0 | F28: bestelauto, CO2-prestatieladder v2.1, SKAO
A29: Transport trekker | B29: tkm | C29: =Hoofdscherm!L8*Hoofdscherm!M8/Hoofdscherm!$M$12 -> 0 | D29: 0.309 | E29: 0 | F29: EI - Transport, tractor and trailer (geen vergelijkbaar transportmiddel in CO2-prestatieladder)
A30: electriciteitsgebruik (grijs) | B30: kWh | C30: =Hoofdscherm!G14 -> 0 | D30: 0.455 | E30: =C30*D30 -> 0 | F30: grijze stroom, 2010 en later, CO2-prestatieladder v2.1, SKAO
A31: electriciteitsgebruik (groen mix) | B31: kWh | C31: =Hoofdscherm!G15 -> 0 | D31: 0.099076542 | E31: =C31*D31 -> 0 | F31: 1 kWh Electricity, low voltage, at grid/NL - Groene stroom; samenstelling obv SBK database
A32: electriciteitsgebruik (wind) | B32: kWh | C32: =Hoofdscherm!G16 -> 0 | D32: 0.015 | E32: 0 | F32: groene stroom - windkracht, CO2-prestatieladder v2.1, SKAO
A33: electriciteitsgebruik (PV) | B33: kWh | C33: =Hoofdscherm!G17 -> 0 | D33: 0.08 | E33: 0 | F33: groene stroom - zonne-energie, CO2-prestatieladder v2.1, SKAO
A34: dieselgebruik | B34: liter | C34: =Hoofdscherm!G18 -> 0 | D34: 3.135 | E34: 0 | F34: Diesel, CO2-prestatieladder v2.1, SKAO
A35: gasgebruik | B35: m3 | C35: =Hoofdscherm!G19 -> 0 | D35: 1.825 | E35: 0 | F35: Aardgas, CO2-prestatieladder v2.1, SKAO
A36: emissie methaan compostering | B36: g | C36: 850 | D36: =22.3/1000 -> 0.0223 | E36: 18.955 | F36: ref. Cuhls et al. 2008
A37: emissie N2O compostering | B37: g | C37: 72 | D37: =298/1000 -> 0.298 | E37: 21.456 | F37: ref. Cuhls et al. 2008
A38: emissie CO2 compostering | B38: g | C38: 0 | D38: 0 | F38: CO2 uit groenafval is biogeen, dus score 0.
A39: Hout naar Bio-energiecentrale | B39: kg | C39: =(Hoofdscherm!G22+Hoofdscherm!G23) -> 0 | D39: =0.01636-(Hoofdscherm!G25*Hoofdscherm!G24*0.0777)-(Hoofdscherm!G26*Hoofdscherm!G24*0.186) -> -0.417206 | E39: 0 | F39: afhankelijk van calorische waarde en rendement, uitsparing gebaseerd op Electricity mix/NL en Heat, natural gas, at industrial furnace
A40: Gras naar co-vergister met wkk | B40: kg | C40: =Hoofdscherm!F31 -> 0 | D40: =(Hoofdscherm!G31/1000)*-1.31147 -> -0.10098319 | E40: 0 | F40: meerdere Ecoinvent processen: Biogas, from biowaste, at agricultural co-fermentation, covered; Electricity, at cogen, biogas agricultural mix; Electricity mix/NL (avoided)
A41: Gras naar co-vergister voor groengas | B41: kg | C41: =Hoofdscherm!F32 -> 0 | D41: =(Hoofdscherm!G32/1000)*-0.79826 -> -0.06146602 | E41: 0 | F41: meerdere Ecoinvent processen: Biogas, from biowaste, at agricultural co-fermentation, covered; Methane, 96 vol-%, from biogas, at purification
A42: Zeefgrond | B42: kg | C42: =Hoofdscherm!G36 -> 0 | D42: -0.0023939006 | E42: 0 | F42: 1 kg Sand, at mine/CH
A43: Alternatieve opwerking deelstromen | B43: kg CO2 eq | C43: =SUM(Hoofdscherm!W26:W29) -> 0 | D43: 1 | E43: 0 | F43: eigen data gebruiker
A44: Warmte (MJ/ton groenafval) | C44: =Hoofdscherm!G39 -> 0 | D44: -0.0777 | E44: 0 | F44: 1 MJ heat from natural gas
A45: Water naar RWZI | B45: m3 | C45: =Hoofdscherm!T32 -> 0 | D45: =0.23*D30 -> 0.10465 | E45: 0 | F45: Stowa
A46: residue to incineration | B46: kg | C46: =Hoofdscherm!T35 -> 15 | D46: -0.039865509 | E46: -0.597982635 | F46: Verbranding 'municipal waste' in gemiddelde NL AVI, met opwekking warmte en elektriciteit
A47: residue to landfill | B47: kg | C47: =Hoofdscherm!T36 -> 0 | D47: 0.0071031036 | E47: 0 | F47: Disposal, inert waste, 5% water, to inert material landfill
A48: transport to compost application; enkele vrachtwagen | B48: tkm | C48: =Hoofdscherm!K43*Hoofdscherm!L43/Hoofdscherm!$M$12 -> 0 | D48: 0.13 | E48: 0 | F48: vrachtauto >20 ton, CO2-prestatieladder v2.1, SKAO
A49: transport dubbele vrachtwagen | B49: tkm | C49: =Hoofdscherm!K44*Hoofdscherm!L44/Hoofdscherm!$M$12 -> 0 | D49: 0.095 | E49: 0 | F49: trekker met oplegger, CO2-prestatieladder v2.1, SKAO
A50: trasport trekker | B50: tkm | C50: =Hoofdscherm!K45*Hoofdscherm!L45/Hoofdscherm!$M$12 -> 0 | D50: 0.309 | E50: 0 | F50: EI - Transport, tractor and trailer (geen vergelijkbaar transportmiddel in CO2-prestatieladder)
A52: veenvervanging | B52: kg | C52: =H20 -> 0 | D52: -0.85 | E52: =C52*D52 -> 0 | F52: hele keten van veentoepassing: veenproductie (Ecoinvent), 90% emissie koolstof als fossiel CO2, na toepassing op het land.
A53: substitution peat transport | B53: km | C53: 1000 | F53: veentransport
B54: tkm | C54: =C52*C53/1000 -> 0 | D54: -0.095 | E54: =C54*D54 -> 0 | F54: trekker met oplegger, CO2-prestatieladder v2.1, SKAO
A55: substitution N-fertilizer | B55: kg | C55: =H16*(E11/1000)*(C15/100)*hoeveelheid_compost*J24 -> 0 | D55: -8.6539883 | E55: 0 | F55: Calcium ammonium nitrate, as N, at regional storehouse/RER
A56: substitution P-fertilizer | B56: kg | C56: =H16*(E13/1000)*(C15/100)*hoeveelheid_compost*K24 -> 0 | D56: -2.021371 | E56: 0 | F56: Triple superphosphate, as P2O5, at regional storehouse/RER
A57: substitution K-fertilizer | B57: kg | C57: =H16*(E14/1000)*(C15/100)*hoeveelheid_compost*L24 -> 0 | D57: -0.49735504 | E57: 0 | F57: Potassium chloride, as K2O, at regional storehouse/RER
A58: vermeden emissie N2O door vermeden toepassing kunstmest | B58: g | C58: =E11*C15/100*hoeveelheid_compost*0.0125*(44/28) -> 0 | D58: =-D37 -> -0.298 | E58: 0 | F58: 1.25% van aanwezige N wordt N2O; molmassa N=14, N2O=44
A59: emissie N2O bij toepassing compost | B59: g | C59: =E11*C15/100*hoeveelheid_compost*0.0125*(44/28)*0.5 -> 0 | D59: =$D$37 -> 0.298 | E59: 0 | F59: 50% van de emissie van kunstmest
A60: koolstofvastlegging in grond | B60: kg | C60: =H17*E12*hoeveelheid_compost*(C15/100)*0.1*(44/12) -> 0 | D60: -1 | E60: 0 | F60: 10% van koolstof in compost blijvend vastgelegd in grond.
A65: Resultaten (kg CO2 eq) voor de totale hoeveelheid groenafval | G65: Resultaten (kg CO2 eq) per hoofdcategorie
E66: kg CO2/ton groenafval
A67: Transport (aanvoer groenafval) | B67: =SUM(E27:E29)*$D$2 -> 0 | E67: =B67/$D$2 -> 0 | G67: Transport | H67: =SUM(B67,B80) -> 0
A68: Elektriciteitverbruik | B68: =(E30+E31+E32+E33)*$D$2 -> 0 | E68: =B68/$D$2 -> 0 | G68: Composteringsproces | H68: =SUM(B68:B72,B78,B79) -> 398.1301737
A69: Dieselgebruik | B69: =E34*$D$2 -> 0 | E69: 0 | G69: Product | H69: =SUM(B73:B77,B81:B83) -> 0
A70: Gasgebruik | B70: =E35*$D$2 -> 0 | E70: 0
A71: Methaanemissie compostering | B71: =E36*$D$2 -> 189.55 | E71: 18.955
A72: Lachgasemissie compostering | B72: =E37*$D$2 -> 214.56 | E72: 21.456
A73: Hout naar Bio-energiecentrale | B73: =E39*$D$2 -> 0 | E73: 0
A74: Gras naar co-vergister | B74: =(E40+E41)*$D$2 -> 0 | E74: 0
A75: Zeefgrond | B75: =E42*$D$2 -> 0 | E75: 0
A76: Alternatieve opwerking | B76: 0 | E76: 0
A77: Warmteterugwinning | B77: 0 | E77: 0
A78: Water naar RWZI | B78: 0 | E78: 0
A79: Residu naar AVI/stort | B79: =(E46+E47)*$D$2 -> -5.97982635 | E79: -0.597982635
A80: Transport (afvoer compost) | B80: =(E48+E49+E50)*$D$2 -> 0 | E80: 0
A81: Veenvervanging | B81: =(E52+E54)*$D$2 -> 0 | E81: 0
A82: Kunstmestvervanging | B82: =SUM(E55:E59)*$D$2 -> 0 | E82: 0
A83: Koolstofvastlegging | B83: =E60*$D$2 -> 0 | E83: 0
A84: Totaal | B84: =SUM(B67:B83) -> 398.1301737 | E84: 39.81301737 | G84: Totaal | H84: =SUM(H67:H69) -> 398.1301737
A85: totaal per ton groenafval | B85: =CO2resultaat/$D$2 -> 39.81301737
A86: (CO2 emissies compostering worden niet meegerekend omdat het biogeen is.)
A88: Resultaten (kg CO2 eq) tbv grafiek
B90: Transport (aanvoer groenafval) | C90: Elektriciteitverbruik | D90: Dieselgebruik | E90: Gasgebruik | F90: Methaanemissie compostering | G90: Lachgasemissie compostering | H90: Hout naar Bio-energiecentrale | I90: Gras naar co-vergister | J90: Zeefgrond | K90: Alternatieve opwerking | L90: Warmteterugwinning | M90: Water naar RWZI | N90: Residu naar AVI/stort | O90: Transport (afvoer compost) | P90: Compost (veenvervanging) | Q90: Compost (kunstmestvervanging) | R90: Compost (koolstofvastlegging)
A91: Transport (aanvoer groenafval) | B91: =B67 -> 0
A92: Elektriciteitverbruik | C92: =B68 -> 0
A93: Dieselgebruik | D93: =B69 -> 0
A94: Gasgebruik | E94: =B70 -> 0
A95: Methaanemissie compostering | F95: =B71 -> 189.55
A96: Lachgasemissie compostering | G96: =B72 -> 214.56
A97: Hout naar Bio-energiecentrale | H97: =B73 -> 0
A98: Gras naar co-vergister | I98: =B74 -> 0
A99: Zeefgrond | J99: =B75 -> 0
A100: Alternatieve opwerking | K100: =B76 -> 0
A101: Warmteterugwinning | L101: =B77 -> 0
A102: Water naar RWZI | M102: =B78 -> 0
A103: Residu naar AVI/stort | N103: =B79 -> -5.97982635
A104: Transport (afvoer compost) | O104: =B80 -> 0
A105: Compost | P105: =B81 -> 0 | Q105: =B82 -> 0 | R105: =B83 -> 0
A108: Totaal | B108: 34.46998903
A147: Resultaten per hoofdcategorie (kg CO2 eq) tbv grafiek
B149: Transport | C149: Composteringsproces | D149: Product
A150: Transport | B150: =H67 -> 0
A151: Composteringsproces | C151: =H68 -> 398.1301737
A152: Product | D152: =H69 -> 0

Sheet Resultaat
D2: CO2-tool opwerking groene reststromen 1.1
B4: Bedrijf: | D4: =Naam_bedrijf -> 0
B5: Locatie: | D5: =Locatie -> 0
B6: Jaar: | D6: =jaartal -> 0
B7: =IF(H7=1,"Werkt volgens best practice","Resultaat niet betrouwbaar. Werkt niet volgens best practice") -> Resultaat niet betrouwbaar. Werkt niet volgens best practice | H7: =IF(AND(Welkom!J24=TRUE,Welkom!J25=TRUE,Welkom!J26=TRUE,Welkom!J29=TRUE,Welkom!J30=TRUE,Welkom!J31=TRUE),1,0) -> 0
B10: Totale hoeveelheid | G10: =Hoofdscherm!M12 -> 10 | H10: ton/jr
B12: Samenstelling
B13: Hout | G13: =Hoofdscherm!M14 -> 0
B14: Gras | G14: =Hoofdscherm!M15 -> 0
B15: Blad | G15: =Hoofdscherm!M16 -> 0
B16: Tuinbouwafval | G16: =Hoofdscherm!M17 -> 0
B17: Overig | G17: =Hoofdscherm!M18 -> 1
B19: Opwerken deelstromen
B20: Hout naar bio-energiecentrale | G20: =(Hoofdscherm!G22+Hoofdscherm!G23) -> 0 | H20: kg/ton
B21: Gras naar co-vergister | G21: =(Hoofdscherm!F32+Hoofdscherm!F31) -> 0 | H21: kg/ton
B22: Zeefgrond afgevoerd | G22: =Hoofdscherm!G36 -> 0 | H22: kg/ton
B23: Alternatieve opwerking | G23: =SUM(Hoofdscherm!S26:S29) -> 0 | H23: kg/ton
B24: Warmteterugwinning | G24: =Hoofdscherm!G39 -> 0 | H24: MJ/ton
B26: Compost
B27: Hoeveelheid | G27: =Hoofdscherm!G50 -> 0 | H27: kg/ton
H36: =CONCATENATE("Resultaat: ",ROUND(CO2resultaat,0),"") -> Resultaat: 398 | I36: kg CO2-equivalenten | P36: =IF(G10=0,0,CONCATENATE("(",ROUND(CO2resultaat_per_ton,0))) -> (40 | Q36: kg CO2-equivalenten per ton groenafval)
